fUSD/lending_fUSD_20240805
["ID","MTS","AMOUNT","RATE_DAILY","PERIOD"]
[334220984,1722844153217,-1117.83,0.00044383,60]
[334220985,1722844153268,-500.0,0.00044383,60]
[334220986,1722844153307,-997.35,0.00044383,60]
[334220987,1722844153347,-500.0,0.00044383,60]
[334220988,1722844153388,-500.0,0.00044383,60]
[334220989,1722844153429,-500.0,0.00044383,60]
[334220990,1722844153469,-500.0,0.00044383,60]
[334220991,1722844153512,-500.0,0.00044383,60]
[334220992,1722844153554,-500.0,0.00044383,60]
[334220993,1722844153594,-500.0,0.00044383,60]
[334220994,1722844153636,-500.0,0.00044383,60]
[334220995,1722844153679,-1385.16,0.00044383,60]
[334220996,1722844153721,-392.30436943,0.00044383,60]
[334220997,1722844153766,-500.0,0.00044383,60]
[334220998,1722844153810,-500.0,0.00044383,60]
[334220999,1722844153851,-2013.05,0.00044383,60]
[334221000,1722844153891,-500.0,0.00044383,60]
[334221001,1722844153933,-500.0,0.00044383,60]
[334221002,1722844153974,-500.0,0.00044383,60]
[334221003,1722844154028,-786.02,0.00044383,60]
[334221004,1722844154072,-500.0,0.00044383,60]
[334221005,1722844154117,-500.0,0.00044383,60]
[334221006,1722844154163,-1285.25,0.00044383,60]
[334221007,1722844154208,-1185.26,0.00044383,60]
[334221008,1722844154249,-500.0,0.00044383,60]
[334221009,1722844154294,-772.26,0.00044383,60]
[334221010,1722844154338,-500.0,0.00044383,60]
[334221011,1722844154381,-778.55,0.00044383,60]
[334221012,1722844154424,-500.0,0.00044383,60]
[334221013,1722844154468,-500.0,0.00044383,60]
[334221014,1722844154516,-500.0,0.00044383,60]
[334221015,1722844154560,-1252.51,0.00044383,60]
[334221016,1722844154601,-899.2,0.00044383,60]
[334221017,1722844154643,-500.0,0.00044383,60]
[334221018,1722844154684,-523.91,0.00044383,60]
[334221019,1722844154724,-500.0,0.00044383,60]
[334221020,1722844154765,-500.0,0.00044383,60]
[334221021,1722844154807,-500.0,0.00044383,60]
[334221022,1722844154850,-628.03,0.00044383,60]
[334221023,1722844154892,-500.0,0.00044383,60]
[334221024,1722844154933,-536.05,0.00044383,60]
[334221025,1722844155201,-500.0,0.00044383,60]
[334221026,1722844155242,-751.17,0.00044383,60]
[334221027,1722844155285,-500.0,0.00044383,60]
[334221028,1722844155325,-500.0,0.00044383,60]
[334221029,1722844155367,-503.2228378,0.00044383,60]
[334221030,1722844155408,-500.0,0.00044383,60]
[334221031,1722844155446,-500.0,0.00044383,60]
[334221032,1722844155485,-500.0,0.00044383,60]
[334221033,1722844155524,-500.0,0.00044383,60]
[334221034,1722844155563,-500.0,0.00044383,60]
[334221035,1722844155601,-500.0,0.00044383,60]
[334221036,1722844155640,-500.0,0.00044383,60]
[334221037,1722844155680,-3160.53,0.00044383,60]
[334221038,1722844155720,-508.55,0.00044383,60]
[334221039,1722844155762,-1729.34,0.00044383,60]
[334221040,1722844155803,-500.0,0.00044383,60]
[334221041,1722844155846,-642.46,0.00044383,60]
[334221042,1722844155887,-500.0,0.00044383,60]
[334221043,1722844155928,-500.0,0.00044383,60]
[334221044,1722844155971,-970.65,0.00044383,60]
[334221045,1722844156018,-781.82,0.00044383,60]
[334221046,1722844156065,-500.0,0.00044383,60]
[334221047,1722844156108,-865.91,0.00044383,60]
[334221048,1722844156151,-500.0,0.00044383,60]
[334221049,1722844156195,-612.7,0.00044383,60]
[334221050,1722844156238,-500.0,0.00044383,60]
[334221051,1722844156281,-500.0,0.00044383,60]
[334221052,1722844156323,-500.0,0.00044383,60]
[334221053,1722844156366,-500.0,0.00044383,60]
[334221054,1722844156408,-537.68,0.00044383,60]
[334221055,1722844156450,-500.0,0.00044383,60]
[334221056,1722844156491,-500.0,0.00044383,60]
[334221057,1722844156532,-753.56,0.00044383,60]
[334221058,1722844156570,-567.23,0.00044383,60]
[334221059,1722844156610,-500.0,0.00044383,60]
[334221060,1722844156648,-2567.32,0.00044383,60]
[334221061,1722844156689,-501.49964342,0.00044383,60]
[334221062,1722844156731,-500.0,0.00044383,60]
[334221063,1722844156773,-539.37,0.00044383,60]
[334221064,1722844156813,-500.0,0.00044383,60]
[334221065,1722844156853,-802.29,0.00044383,60]
[334221066,1722844156895,-500.0,0.00044383,60]
[334221067,1722844156937,-600.9,0.00044383,60]
[334221068,1722844156979,-1563.99,0.00044383,60]
[334221069,1722844157020,-500.0,0.00044383,60]
[334221070,1722844157062,-500.0,0.00044383,60]
[334221071,1722844157106,-500.0,0.00044383,60]
[334221072,1722844157147,-500.0,0.00044383,60]
[334221073,1722844157189,-500.0,0.00044383,60]
[334221074,1722844157229,-500.0,0.00044383,60]
[334221075,1722844157269,-2391.07,0.00044383,60]
[334221076,1722844157308,-910.33,0.00044383,60]
[334221077,1722844157348,-926.82,0.00044383,60]
[334221078,1722844157391,-500.0,0.00044383,60]
[334221079,1722844157437,-197.48498813,0.00044383,60]
[334221080,1722844157479,-1591.38,0.00044383,60]
[334221081,1722844157521,-2018.12,0.00044383,60]
[334221082,1722844157563,-500.0,0.00044383,60]
[334221083,1722844157604,-500.0,0.00044383,60]
[334221084,1722844157645,-691.99,0.00044383,60]
[334221085,1722844157686,-500.0,0.00044383,60]
[334221086,1722844157728,-500.0,0.00044383,60]
[334221087,1722844157771,-500.0,0.00044383,60]
[334221088,1722844157813,-500.0,0.00044383,60]
[334221089,1722844157856,-500.0,0.00044383,60]
[334221090,1722844157898,-500.0,0.00044383,60]
[334221091,1722844157944,-500.0,0.00044383,60]
[334221092,1722844157989,-500.0,0.00044383,60]
[334221093,1722844158034,-779.41,0.00044383,60]
[334221094,1722844158082,-500.0,0.00044383,60]
[334221095,1722844158131,-500.0,0.00044383,60]
[334221096,1722844158176,-942.51,0.00044383,60]
[334221097,1722844158220,-500.0,0.00044383,60]
[334221098,1722844158267,-2916.29,0.00044383,60]
[334221099,1722844158311,-500.0,0.00044383,60]
[334221100,1722844158354,-500.0,0.00044383,60]
[334221101,1722844158398,-1233.31,0.00044383,60]
[334221102,1722844158442,-766.73,0.00044383,60]
[334221103,1722844158488,-500.0,0.00044383,60]
[334221104,1722844158532,-500.0,0.00044383,60]
[334221105,1722844158578,-915.42,0.00044383,60]
[334221106,1722844158621,-870.91,0.00044383,60]
[334221107,1722844158663,-500.0,0.00044383,60]
[334221108,1722844158704,-500.0,0.00044383,60]
[334221109,1722844158747,-500.0,0.00044383,60]
[334221110,1722844158794,-1691.15,0.00044383,60]
[334221111,1722844158838,-500.0,0.00044383,60]
[334221112,1722844158882,-500.0,0.00044383,60]
[334221113,1722844158928,-500.0,0.00044383,60]
[334221114,1722844158973,-500.0,0.00044383,60]
[334221115,1722844159018,-834.27,0.00044383,60]
[334221116,1722844159061,-516.48983489,0.00044383,60]
[334221117,1722844159108,-1459.73,0.00044383,60]
[334221118,1722844159151,-500.0,0.00044383,60]
[334221119,1722844159193,-2390.28,0.00044383,60]
[334221120,1722844159235,-500.0,0.00044383,60]
[334221121,1722844159278,-500.0,0.00044383,60]
[334221122,1722844159323,-1761.5,0.00044383,60]
[334221123,1722844159367,-500.0,0.00044383,60]
[334221124,1722844159411,-1163.33,0.00044383,60]
[334221125,1722844159456,-500.0,0.00044383,60]
[334221126,1722844159501,-500.0,0.00044383,60]
[334221127,1722844159547,-500.0,0.00044383,60]
[334221128,1722844159592,-500.0,0.00044383,60]
[334221129,1722844159636,-1314.52,0.00044383,60]
[334221130,1722844159925,-761.02,0.00044383,60]
[334221131,1722844159969,-1207.95,0.00044383,60]
[334221132,1722844160013,-500.0,0.00044383,60]
[334221133,1722844160056,-500.0,0.00044383,60]
[334221134,1722844160100,-500.0,0.00044383,60]
[334221135,1722844160143,-500.0,0.00044383,60]
[334221136,1722844160184,-500.0,0.00044383,60]
[334221137,1722844160225,-2565.81,0.00044383,60]
[334221138,1722844160267,-500.0,0.00044383,60]
[334221139,1722844160308,-749.53,0.00044383,60]
[334221140,1722844160347,-979.33,0.00044383,60]
[334221141,1722844160391,-500.0,0.00044383,60]
[334221142,1722844160432,-961.95,0.00044383,60]
[334221143,1722844160473,-500.0,0.00044383,60]
[334221144,1722844160516,-611.05,0.00044383,60]
[334221145,1722844160555,-500.0,0.00044383,60]
[334221146,1722844160594,-500.0,0.00044383,60]
[334221147,1722844160633,-500.0,0.00044383,60]
[334221148,1722844160671,-545.02,0.00044383,60]
[334221149,1722844160710,-1016.91,0.00044383,60]
[334221150,1722844160749,-500.0,0.00044383,60]
[334221151,1722844160790,-500.0,0.00044383,60]
[334221152,1722844160831,-883.87,0.00044383,60]
[334221153,1722844160871,-2022.73,0.00044383,60]
[334221154,1722844160913,-500.0,0.00044383,60]
[334221155,1722844160957,-547.52,0.00044383,60]
[334221156,1722844161001,-1160.5,0.00044383,60]
[334221157,1722844161048,-1346.29,0.00044383,60]
[334221158,1722844161094,-4479.71,0.00044383,60]
[334221159,1722844161142,-1279.5,0.00044383,60]
[334221160,1722844161186,-500.0,0.00044383,60]
[334221161,1722844161229,-2040.04,0.00044383,60]
[334221162,1722844161272,-580.51777274,0.00044383,60]
[334221163,1722844161313,-1979.66,0.00044383,60]
[334221164,1722844161353,-656.96,0.00044383,60]
[334221165,1722844161394,-500.0,0.00044383,60]
[334221166,1722844161435,-1797.59,0.00044383,60]
[334221167,1722844161478,-1718.42,0.00044383,60]
[334221168,1722844161520,-500.84002187,0.00044383,60]
[334221169,1722844161562,-500.0,0.00044383,60]
[334221170,1722844161604,-500.0,0.00044383,60]
[334221171,1722844161646,-817.92,0.00044383,60]
[334221172,1722844161688,-500.0,0.00044383,60]
[334221173,1722844161730,-4393.43,0.00044383,60]
[334221174,1722844161772,-650.93,0.00044383,60]
[334221175,1722844161818,-500.0,0.00044383,60]
[334221176,1722844161863,-500.0,0.00044383,60]
[334221177,1722844161908,-500.0,0.00044383,60]
[334221178,1722844161950,-2535.59,0.00044383,60]
[334221179,1722844161992,-795.98,0.00044383,60]
[334221180,1722844162035,-500.0,0.00044383,60]
[334221181,1722844162077,-500.0,0.00044383,60]
[334221182,1722844162119,-1108.74,0.00044383,60]
[334221183,1722844162161,-554.48,0.00044383,60]
[334221184,1722844162204,-500.0,0.00044383,60]
[334221185,1722844162246,-748.43,0.00044383,60]
[334221186,1722844162295,-676.01,0.00044383,60]
[334221187,1722844162338,-2269.32,0.00044383,60]
[334221188,1722844162380,-541.67,0.00044383,60]
[334221189,1722844162422,-500.0,0.00044383,60]
[334221190,1722844162464,-1092.36,0.00044383,60]
[334221191,1722844162504,-500.0,0.00044383,60]
[334221192,1722844162549,-2605.32,0.00044383,60]
[334221193,1722844162590,-308.27,0.00044383,60]
[334221194,1722844162631,-881.72,0.00044383,60]
[334221195,1722844162674,-500.0,0.00044383,60]
[334221196,1722844162718,-571.71,0.00044383,60]
[334221197,1722844162760,-451.74602066,0.00044383,60]
[334221198,1722844162811,-500.0,0.00044383,60]
[334221199,1722844162853,-517.09,0.00044383,60]
[334221200,1722844162895,-1077.24,0.00044383,60]
[334221201,1722844162936,-587.38,0.00044383,60]
[334221202,1722844162979,-500.0,0.00044383,60]
[334221203,1722844163023,-2690.83,0.00044383,60]
[334221204,1722844163064,-500.0,0.00044383,60]
[334221205,1722844163106,-500.0,0.00044383,60]
[334221206,1722844163148,-3048.1,0.00044383,60]
[334221207,1722844163188,-1735.96,0.00044383,60]
[334221208,1722844163230,-500.0,0.00044383,60]
[334221209,1722844163273,-500.0,0.00044383,60]
[334221210,1722844163314,-500.0,0.00044383,60]
[334221211,1722844163355,-1039.78,0.00044383,60]
[334221212,1722844163396,-502.43787213,0.00044383,60]
[334221213,1722844163439,-1250.88,0.00044383,60]
[334221214,1722844163482,-1011.05,0.00044383,60]
[334221215,1722844163525,-500.0,0.00044383,60]
[334221216,1722844163568,-500.0,0.00044383,60]
[334221217,1722844163612,-1749.45,0.00044383,60]
[334221218,1722844163654,-500.0,0.00044383,60]
[334221219,1722844163697,-500.0,0.00044383,60]
[334221220,1722844163740,-2024.0,0.00044383,60]
[334221221,1722844163784,-1204.61,0.00044383,60]
[334221222,1722844163827,-500.0,0.00044383,60]
[334221223,1722844163870,-500.0,0.00044383,60]
[334221224,1722844163913,-500.0,0.00044383,60]
[334221225,1722844163959,-500.0,0.00044383,60]
[334221226,1722844164004,-623.6,0.00044383,60]
[334221227,1722844164051,-500.0,0.00044383,60]
[334221228,1722844164094,-500.0,0.00044383,60]
[334221229,1722844164141,-500.0,0.00044383,60]
[334221230,1722844164184,-3446.36,0.00044383,60]
[334221231,1722844164229,-748.82,0.00044383,60]
[334221232,1722844164274,-1415.66,0.00044383,60]
[334221233,1722844164313,-500.0,0.00044383,60]
[334221234,1722844164586,-1207.31,0.00044383,60]
[334221235,1722844164630,-500.0,0.00044383,60]
[334221236,1722844164671,-500.0,0.00044383,60]
[334221237,1722844164710,-500.0,0.00044383,60]
[334221238,1722844164751,-500.0,0.00044383,60]
[334221239,1722844164799,-3556.54,0.00044383,60]
[334221240,1722844164845,-788.5,0.00044383,60]
[334221241,1722844164891,-500.0,0.00044383,60]
[334221242,1722844164935,-500.0,0.00044383,60]
[334221243,1722844164978,-500.0,0.00044383,60]
[334221244,1722844165026,-500.0,0.00044383,60]
[334221245,1722844165066,-500.0,0.00044383,60]
[334221246,1722844165106,-738.52,0.00044383,60]
[334221247,1722844165146,-781.04,0.00044383,60]
[334221248,1722844165184,-2197.19,0.00044383,60]
[334221249,1722844165222,-500.0,0.00044383,60]
[334221250,1722844165261,-500.0,0.00044383,60]
[334221251,1722844165303,-500.0,0.00044383,60]
[334221252,1722844165340,-500.0,0.00044383,60]
[334221253,1722844165379,-500.0,0.00044383,60]
[334221254,1722844165417,-500.0,0.00044383,60]
[334221255,1722844165454,-861.54,0.00044383,60]
[334221256,1722844165489,-629.51,0.00044383,60]
[334221257,1722844165526,-500.0,0.00044383,60]
[334221258,1722844165562,-500.0,0.00044383,60]
[334221259,1722844165598,-500.0,0.00044383,60]
[334221260,1722844165634,-500.0,0.00044383,60]
[334221261,1722844165669,-500.0,0.00044383,60]
[334221262,1722844165704,-501.43999172,0.00044383,60]
[334221263,1722844165739,-500.0,0.00044383,60]
[334221264,1722844165778,-2019.2,0.00044383,60]
[334221265,1722844165815,-1081.51,0.00044383,60]
[334221266,1722844165854,-500.0,0.00044383,60]
[334221267,1722844165892,-500.0,0.00044383,60]
[334221268,1722844165930,-3091.06,0.00044383,60]
[334221269,1722844165969,-500.0,0.00044383,60]
[334221270,1722844166009,-1926.55,0.00044383,60]
[334221271,1722844166058,-996.23,0.00044383,60]
[334221272,1722844166100,-500.0,0.00044383,60]
[334221273,1722844166141,-500.0,0.00044383,60]
[334221274,1722844166183,-500.0,0.00044383,60]
[334221275,1722844166224,-500.0,0.00044383,60]
[334221276,1722844166265,-500.0,0.00044383,60]
[334221277,1722844166308,-501.13418522,0.00044383,60]
[334221278,1722844166347,-500.0,0.00044383,60]
[334221279,1722844166385,-500.0,0.00044383,60]
[334221280,1722844166424,-500.0,0.00044383,60]
[334221281,1722844166463,-1073.18,0.00044383,60]
[334221282,1722844166502,-503.14108163,0.00044383,60]
[334221283,1722844166542,-3342.17,0.00044383,60]
[334221284,1722844166581,-2364.16,0.00044383,60]
[334221285,1722844166619,-500.0,0.00044383,60]
[334221286,1722844166657,-475.168771,0.00044383,60]
[334221287,1722844166695,-500.0,0.00044383,60]
[334221288,1722844166734,-871.78,0.00044383,60]
[334221289,1722844166772,-500.0,0.00044383,60]
[334221290,1722844166810,-500.0,0.00044383,60]
[334221291,1722844166852,-500.0,0.00044383,60]
[334221292,1722844166896,-1176.28,0.00044383,60]
[334221293,1722844166939,-2932.21,0.00044383,60]
[334221294,1722844166981,-500.0,0.00044383,60]
[334221295,1722844167030,-500.0,0.00044383,60]
[334221296,1722844167072,-500.0,0.00044383,60]
[334221297,1722844167116,-500.0,0.00044383,60]
[334221298,1722844167158,-500.0,0.00044383,60]
[334221299,1722844167200,-1369.01,0.00044383,60]
[334221300,1722844167241,-500.0,0.00044383,60]
[334221301,1722844167279,-551.05,0.00044383,60]
[334221302,1722844167318,-962.6,0.00044383,60]
[334221303,1722844167357,-1590.64,0.00044383,60]
[334221304,1722844167395,-500.0,0.00044383,60]
[334221305,1722844167434,-500.0,0.00044383,60]
[334221306,1722844167472,-572.5924957,0.00044383,60]
[334221307,1722844167510,-929.8,0.00044383,60]
[334221308,1722844167554,-500.0,0.00044383,60]
[334221309,1722844167592,-2220.92,0.00044383,60]
[334221310,1722844167630,-1744.69,0.00044383,60]
[334221311,1722844167667,-1678.91,0.00044383,60]
[334221312,1722844167703,-500.0,0.00044383,60]
[334221313,1722844167741,-1493.19,0.00044383,60]
[334221314,1722844167779,-1416.08,0.00044383,60]
[334221315,1722844167816,-697.66,0.00044383,60]
[334221316,1722844167853,-500.0,0.00044383,60]
[334221317,1722844167893,-500.0,0.00044383,60]
[334221318,1722844167932,-3024.71,0.00044383,60]
[334221319,1722844167973,-996.96,0.00044383,60]
[334221320,1722844168013,-744.97,0.00044383,60]
[334221321,1722844168053,-584.29,0.00044383,60]
[334221322,1722844168093,-500.0,0.00044383,60]
[334221323,1722844168136,-2398.98,0.00044383,60]
[334221324,1722844168177,-2176.07,0.00044383,60]
[334221325,1722844168218,-552.07,0.00044383,60]
[334221326,1722844168258,-3676.17,0.00044383,60]
[334221327,1722844168303,-500.0,0.00044383,60]
[334221328,1722844168341,-2763.91,0.00044383,60]
[334221329,1722844168381,-500.0,0.00044383,60]
[334221330,1722844168418,-500.0,0.00044383,60]
[334221331,1722844168455,-1002.08,0.00044383,60]
[334221332,1722844168490,-750.01,0.00044383,60]
[334221333,1722844168527,-1538.08,0.00044383,60]
[334221334,1722844168564,-500.0,0.00044383,60]
[334221335,1722844168602,-500.0,0.00044383,60]
[334221336,1722844168644,-1448.11,0.00044383,60]
[334221337,1722844168687,-500.0,0.00044383,60]
[334221338,1722844168959,-2587.1,0.00044383,60]
[334221339,1722844169000,-500.0,0.00044383,60]
[334221340,1722844169045,-500.0,0.00044383,60]
[334221341,1722844169086,-765.91,0.00044383,60]
[334221342,1722844169127,-500.0,0.00044383,60]
[334221343,1722844169165,-3064.52,0.00044383,60]
[334221344,1722844169209,-500.0,0.00044383,60]
[334221345,1722844169248,-1557.46,0.00044383,60]
[334221346,1722844169295,-533.48,0.00044383,60]
[334221347,1722844169336,-500.0,0.00044383,60]
[334221348,1722844169376,-500.0,0.00044383,60]
[334221349,1722844169415,-810.02,0.00044383,60]
[334221350,1722844169453,-1020.46,0.00044383,60]
[334221351,1722844169495,-1149.76,0.00044383,60]
[334221352,1722844169533,-1605.85,0.00044383,60]
[334221353,1722844169571,-3579.5,0.00044383,60]
[334221354,1722844169608,-500.0,0.00044383,60]
[334221355,1722844169649,-956.58,0.00044383,60]
[334221356,1722844169686,-500.0,0.00044383,60]
[334221357,1722844169722,-2490.57,0.00044383,60]
[334221358,1722844169760,-500.0,0.00044383,60]
[334221359,1722844169801,-500.0,0.00044383,60]
[334221360,1722844169838,-500.0,0.00044383,60]
[334221361,1722844169876,-500.0,0.00044383,60]
[334221362,1722844169915,-1276.34,0.00044383,60]
[334221363,1722844169955,-500.0,0.00044383,60]
[334221364,1722844169995,-500.0,0.00044383,60]
[334221365,1722844170035,-1139.97,0.00044383,60]
[334221366,1722844170074,-581.94,0.00044383,60]
[334221367,1722844170117,-544.37,0.00044383,60]
[334221368,1722844170158,-500.0,0.00044383,60]
[334221369,1722844170199,-1206.85,0.00044383,60]
[334221370,1722844170235,-500.0,0.00044383,60]
[334221371,1722844170272,-3091.48,0.00044383,60]
[334221372,1722844170308,-500.0,0.00044383,60]
[334221373,1722844170343,-969.26,0.00044383,60]
[334221374,1722844170382,-2684.86,0.00044383,60]
[334221375,1722844170418,-1258.7,0.00044383,60]
[334221376,1722844170456,-505.77650491,0.00044383,60]
[334221377,1722844170494,-1112.49,0.00044383,60]
[334221378,1722844170531,-653.32,0.00044383,60]
[334221379,1722844170570,-500.0,0.00044383,60]
[334221380,1722844170607,-818.34,0.00044383,60]
[334221381,1722844170644,-782.47,0.00044383,60]
[334221382,1722844170682,-1503.97,0.00044383,60]
[334221383,1722844170720,-1117.12,0.00044383,60]
[334221384,1722844170758,-500.0,0.00044383,60]
[334221385,1722844170801,-500.0,0.00044383,60]
[334221386,1722844170841,-1479.62,0.00044383,60]
[334221387,1722844170881,-500.0,0.00044383,60]
[334221388,1722844170921,-501.70407637,0.00044383,60]
[334221389,1722844170963,-500.0,0.00044383,60]
[334221390,1722844171004,-500.0,0.00044383,60]
[334221391,1722844171050,-438.66716825,0.00044383,60]
[334221392,1722844171096,-500.0,0.00044383,60]
[334221393,1722844171139,-500.0,0.00044383,60]
[334221394,1722844171181,-500.0,0.00044383,60]
[334221395,1722844171221,-500.0,0.00044383,60]
[334221396,1722844171262,-4566.79,0.00044383,60]
[334221397,1722844171308,-500.0,0.00044383,60]
[334221398,1722844171349,-665.55,0.00044383,60]
[334221399,1722844171389,-500.0,0.00044383,60]
[334221400,1722844171430,-1862.02,0.00044383,60]
[334221401,1722844171472,-500.0,0.00044383,60]
[334221402,1722844171510,-1106.04,0.00044383,60]
[334221403,1722844171553,-910.91,0.00044383,60]
[334221404,1722844171592,-500.0,0.00044383,60]
[334221405,1722844171631,-500.0,0.00044383,60]
[334221406,1722844171669,-503.20917813,0.00044383,60]
[334221407,1722844171708,-844.82,0.00044383,60]
[334221408,1722844171749,-2881.09,0.00044383,60]
[334221409,1722844171791,-500.0,0.00044383,60]
[334221410,1722844171830,-1233.92,0.00044383,60]
[334221411,1722844171870,-500.0,0.00044383,60]
[334221412,1722844171909,-500.0,0.00044383,60]
[334221413,1722844171951,-150.0,0.00044383,60]
[334221414,1722844171993,-1817.05,0.00044383,60]
[334221415,1722844172037,-663.4,0.00044383,60]
[334221416,1722844172079,-940.29,0.00044383,60]
[334221417,1722844172123,-500.0,0.00044383,60]
[334221418,1722844172167,-1193.36,0.00044383,60]
[334221419,1722844172209,-1041.73,0.00044383,60]
[334221420,1722844172250,-500.0,0.00044383,60]
[334221421,1722844172292,-500.0,0.00044383,60]
[334221422,1722844172332,-1889.39,0.00044383,60]
[334221423,1722844172374,-4031.21,0.00044383,60]
[334221424,1722844172415,-575.03,0.00044383,60]
[334221425,1722844172457,-1021.91,0.00044383,60]
[334221426,1722844172497,-889.77,0.00044383,60]
[334221427,1722844172535,-2391.75,0.00044383,60]
[334221428,1722844172573,-500.0,0.00044383,60]
[334221429,1722844172610,-1422.39,0.00044383,60]
[334221430,1722844172647,-1481.83,0.00044383,60]
[334221431,1722844172685,-812.97,0.00044383,60]
[334221432,1722844172724,-500.0,0.00044383,60]
[334221433,1722844172763,-1178.96,0.00044383,60]
[334221434,1722844172806,-500.0,0.00044383,60]
[334221435,1722844172845,-500.0,0.00044383,60]
[334221436,1722844172887,-1524.82,0.00044383,60]
[334221437,1722844172932,-500.0,0.00044383,60]
[334221438,1722844172974,-500.0,0.00044383,60]
[334221439,1722844173017,-500.0,0.00044383,60]
[334221440,1722844173061,-1094.96,0.00044383,60]
[334221441,1722844173103,-2487.48,0.00044383,60]
[334221442,1722844173395,-789.42,0.00044383,60]
[334221443,1722844173438,-1973.1,0.00044383,60]
[334221444,1722844173483,-989.26,0.00044383,60]
[334221445,1722844173529,-500.0,0.00044383,60]
[334221446,1722844173575,-500.0,0.00044383,60]
[334221447,1722844173624,-500.0,0.00044383,60]
[334221448,1722844173671,-500.0,0.00044383,60]
[334221449,1722844173718,-1515.92,0.00044383,60]
[334221450,1722844173764,-2056.28,0.00044383,60]
[334221451,1722844173814,-3337.89,0.00044383,60]
[334221452,1722844173861,-500.0,0.00044383,60]
[334221453,1722844173908,-1172.06,0.00044383,60]
[334221454,1722844173954,-500.0,0.00044383,60]
[334221455,1722844174000,-2779.3,0.00044383,60]
[334221456,1722844174055,-979.35,0.00044383,60]
[334221457,1722844174100,-829.4,0.00044383,60]
[334221458,1722844174149,-502.21969548,0.00044383,60]
[334221459,1722844174195,-4474.14,0.00044383,60]
[334221460,1722844174241,-795.18,0.00044383,60]
[334221461,1722844174287,-1288.51,0.00044383,60]
[334221462,1722844174331,-500.0,0.00044383,60]
[334221463,1722844174375,-772.19,0.00044383,60]
[334221464,1722844174418,-1615.12,0.00044383,60]
[334221465,1722844174458,-1472.89,0.00044383,60]
[334221466,1722844174496,-2513.59,0.00044383,60]
[334221467,1722844174534,-555.24906399,0.00044383,60]
[334221468,1722844174583,-500.0,0.00044383,60]
[334221469,1722844174628,-683.57,0.00044383,60]
[334221470,1722844174668,-586.11,0.00044383,60]
[334221471,1722844174707,-1121.51,0.00044383,60]
[334221472,1722844174750,-500.0,0.00044383,60]
[334221473,1722844174801,-3536.48,0.00044383,60]
[334221474,1722844174848,-500.0,0.00044383,60]
[334221475,1722844174894,-677.33,0.00044383,60]
[334221476,1722844174945,-500.0,0.00044383,60]
[334221477,1722844174995,-500.0,0.00044383,60]
[334221478,1722844175042,-500.0,0.00044383,60]
[334221479,1722844175091,-500.0,0.00044383,60]
[334221480,1722844175145,-500.0,0.00044383,60]
[334221481,1722844175193,-500.0,0.00044383,60]
[334221482,1722844175242,-534.3,0.00044383,60]
[334221483,1722844175291,-500.0,0.00044383,60]